Cogmind - Beta 14 @@@ ROGUE MODE // 2024.11.16 @ 13:05:30 Player: Longball Result: Destroyed by Y-45 Defender with Beam Rifle Performance ------------- Evolutions (0) 0 Regions Visited (3) 600 Robots Destroyed (23) 115 Value Destroyed (687) 687 Prototype IDs (13) 260 Alien Tech Used (0) 0 Bonus (0) 0 TOTAL SCORE: 1662 Bonus ------- None Cogmind --------- Core Integrity 0/250 Matter 300/300 Energy 170/170 System Corruption 4% Temperature Cool (9) Movement Treading (160) Location -8/Recycling Parts ------- > --- POWER (1+1) ------ Makeshift Power Source (+) > --- PROPULSION (2) --- Light Treads Light Treads > --- UTILITY (2) ------ Medium Storage Unit Seismic Detector > --- WEAPON (2) ------- Powered Cannon > --- INVENTORY (10) --- Aluminum Leg Aluminum Leg Small Storage Unit Large Storage Unit Signal Interpreter Battle Rifle Battle Cannon Grenade Launcher Makeshift Axe Peak State ------------ > --- POWER ------------ Light Nuclear Core Makeshift Power Source > --- PROPULSION ------- Light Treads Light Treads > --- UTILITY ---------- Medium Storage Unit Seismic Detector > --- WEAPON ----------- Powered Cannon > --- INVENTORY -------- Aluminum Leg Aluminum Leg Small Storage Unit Large Storage Unit Signal Interpreter Battle Rifle Battle Cannon Grenade Launcher Makeshift Axe [Rating: 26] Favorites ----------- Power Light Nuclear Core Engine Makeshift Power Source Power Core Light Nuclear Core Propulsion Aluminum Leg Treads Light Treads Leg Aluminum Leg Utility Medium Storage Unit Device Seismic Detector Storage Medium Storage Unit Weapon Subdweller Machine Gun Energy Gun Particle Gun Energy Cannon Light EM Pulse Cannon Ballistic Gun Subdweller Machine Gun Ballistic Cannon Light Cannon Launcher Grenade Launcher Slashing Weapon Makeshift Axe Build | -11 -10 -10 -8 ------- Run | Yrd Mat Sub Rec Slots Evolved . | . . . . Power . | . . . . Propulsion . | . . . . Utility . | . . . . Weapon . | . . . . Parts Attached 32 | 6 12 14 . Power 4 | 1 2 1 . Engine 2 | 1 . 1 . Core 2 | . 2 . . Reactor . | . . . . Propulsion 6 | 2 2 2 . Treads 2 | . . 2 . Leg 4 | 2 2 . . Wheel . | . . . . Hover . | . . . . Flight . | . . . . Utility 4 | 1 2 1 . Device 2 | . 1 1 . Storage 2 | 1 1 . . Processor . | . . . . Hackware . | . . . . Protection . | . . . . Artifact . | . . . . Weapon 18 | 2 6 10 . Energy Gun 1 | . 1 . . Energy Cannon 3 | . 2 1 . Ballistic Gun 7 | 2 2 3 . Ballistic Cannon 2 | . 1 1 . Launcher 3 | . . 3 . Special Weapon . | . . . . Impact Weapon . | . . . . Slashing Weapon 2 | . . 2 . Piercing Weapon . | . . . . Special Melee Weapon . | . . . . Unidentified Prototypes . | . . . . Parts Lost 3 | . 1 2 . Power 1 | . . 1 . Propulsion . | . . . . Utility 1 | . . 1 . Weapon 1 | . 1 . . Highest Loss Streak 1 | . 1 1 . To Critical Strikes . | . . . . Average Slot Usage (%) 96 | . 98 94 . Engine 1 | . . 2 . Core 13 | . 13 13 . Treads 3 | . . 5 . Leg 24 | . 27 21 . Device 12 | . 13 11 . Storage 13 | . 14 13 . Energy Cannon 6 | . 11 3 . Ballistic Gun 12 | . 14 11 . Launcher 4 | . . 8 . Peak Build Rating 26 | 6 14 26 23 Average Rating 13 | 4 13 14 23 On Entrance 10 | . 6 14 23 Naked Turns . | . . . . Heaviest Build 29 | 11 23 29 24 Greatest Support 40 | 20 20 40 40 Greatest Overweight (x) 1 | . 1 1 . Average Overweight (x) . | . . . . Largest Inventory Capacity 10 | 8 10 10 10 Average Capacity 9 | 7 9 10 10 Most Carried 10 | 6 10 10 9 Average Carried 9 | 3 9 9 9 Final Capacity 10 | 8 10 10 10 Final Carried 9 | 6 9 9 9 Class Distribution -------------------- 100% | Mutant Dominant Class ---------------- Mutant | -10/Materials Mutant | -10/Subcaves Mutant | -8/Recycling Resources | -11 -10 -10 -8 ----------- Run | Yrd Mat Sub Rec Matter Collected 922 | 260 292 370 . Remotely . | . . . . Salvage Created 867 | . 533 334 . Parts 60 | . 33 27 . Haulers Intercepted . | . . . . Recyclers Shooed . | . . . . Parts Field Recycled . | . . . . Retrieved Matter . | . . . . Parts Self-Destructed 14 | . . 14 . Prevented . | . . . . Kills | -11 -10 -10 -8 ------- Run | Yrd Mat Sub Rec Combat Hostiles Destroyed 17 | . 8 9 . Guns 4 | . 3 1 . Cannons 6 | . 5 1 . AOE 6 | . . 6 . Classes Destroyed 7 | . 5 2 . Recycler 2 | . 2 . . Operator 1 | . 1 . . Turret 2 | . . 2 . Watcher 1 | . 1 . . Swarmer 3 | . 3 . . Grunt 5 | . 5 . . Subdweller 9 | . . 9 . Best Kill Streak 3 | . 3 2 . Combat Bots Only 3 | . 3 2 . Max Kills in Single Turn 2 | . 2 1 . Gunslinging . | . . . . Exploded 1 | . . 1 . Melee . | . . . . Uniques/NPCs Destroyed . | . . . . Combat | -11 -10 -10 -8 -------- Run | Yrd Mat Sub Rec Hostile Shots Fired 93 | . 38 54 1 Missed 33 | . 10 23 . Damage Taken 839 | . 355 470 14 Core 254 | . 70 170 14 Absorbed by Shields . | . . . . Regen/Repaired (Parts) 56 | . 56 . . Core Remaining (%) 100 | 100 . . . Volleys Fired 79 | . 36 43 . Largest 2 | . 2 2 . Hottest 85 | . 85 79 . Shots Fired 120 | . 67 53 . Gun 47 | . 38 9 . Cannon 57 | . 29 28 . Launcher 16 | . . 16 . Special . | . . . . Kinetic 52 | . 41 11 . Thermal 18 | . 1 17 . Explosive 16 | . . 16 . Electromagnetic 34 | . 25 9 . Robot Hit Streak 12 | . 9 12 . Robot Miss Streak 2 | . 2 1 . Penetration Max . | . . . . Secondary Targets 1 | . 1 . . Max Gunslinging Chain 1 | . 1 . . Shots Hit Robots 72 | . 37 35 . Core Hits 35 | . 16 19 . Critical Kills 1 | . . 1 . Critical Parts Destroyed . | . . . . Critical Strikes 2 | . 1 1 . Meltdown 1 | . . 1 . Corrupt 1 | . 1 . . Melee Attacks 1 | . . 1 . Impact . | . . . . Slashing 1 | . . 1 . Piercing . | . . . . Sneak Attacks . | . . . . Combat Hostiles . | . . . . Follow-up Attacks . | . . . . Damage Inflicted 2119 | . 786 1333 . Guns 397 | . 280 117 . Cannons 995 | . 449 546 . Explosions 727 | . 57 670 . Melee . | . . . . Ramming . | . . . . Kinetic 379 | . 262 117 . Thermal 470 | . 75 395 . Explosive 670 | . . 670 . Electromagnetic 600 | . 449 151 . Impact . | . . . . Slashing . | . . . . Piercing . | . . . . Highest Corruption 4 | . 4 4 4 Average Corruption 3 | . 3 4 4 Corruption Purged . | . . . . Corruption Blocked . | . . . . Effects 70 | . 30 40 . Message Errors 16 | . 4 12 . Matter Fused 13 | . 7 6 . Heat Flow Errors 14 | . 7 7 . Energy Discharges 10 | . 4 6 . Data Loss (minor) 6 | . 2 4 . Data Loss (major) 3 | . 2 1 . Misfires 2 | . 1 1 . Alerts 5 | . 2 3 . Weapon Failures 1 | . 1 . . Overload Shots . | . . . . Overflow Damage 52 | . 52 . . Projectiles 42 | . 42 . . Explosions 10 | . 10 . . Melee . | . . . . Knockbacks . | . . . . Impact . | . . . . Kinetic . | . . . . Secondary . | . . . . Self-Inflicted Damage 27 | . 27 . . Shots 1 | . 1 . . Rammed . | . . . . Targets Rammed . | . . . . Kicked . | . . . . Crushed . | . . . . Highest Temperature 259 | . 259 195 . Average Temperature 67 | . 80 54 . Received Heat Transfer 264 | . 117 138 9 Siege Activations . | . . . . Robots Corrupted . | . . . . Combat Hostiles . | . . . . Parts Fried 4 | . 3 1 . Impact Corruptions . | . . . . Robots Melted 1 | . . 1 . Combat Hostiles 1 | . . 1 . Parts Melted 3 | . . 3 . Heat Transferred 137 | . 137 . . Parts Sabotaged . | . . . . Parts Stolen . | . . . . Parts Stripped . | . . . . Power Chain Reactions 1 | . 1 . . Alert | -11 -10 -10 -8 ------- Run | Yrd Mat Sub Rec Peak Influence 102 | . 102 . 28 Initial 28 | . . . 28 Average 48 | . 51 . 28 Maximum Alert Level . | . . . . Low Security (%) 100 | 100 100 . 100 Level 1 . | . . . . Level 2 . | . . . . Level 3 . | . . . . Level 4 . | . . . . Level 5 . | . . . . High Security . | . . . . Max Security . | . . . . Squads Dispatched 2 | . 2 . . Investigation 2 | . 2 . . Extermination . | . . . . Reinforcement . | . . . . Assault . | . . . . Garrison . | . . . . Intercept . | . . . . Searches Triggered . | . . . . Construction Impeded . | . . . . Haulers Reinforced . | . . . . Active Scanning Responses . | . . . . Cargo Convoy Interrupts . | . . . . Stealth | -11 -10 -10 -8 --------- Run | Yrd Mat Sub Rec Distress Signals . | . . . . Communications Jammed . | . . . . Distress Signals . | . . . . Times Spotted 30 | . 17 11 2 Peak Tracking Total 4 | . 4 2 2 Tactical Retreats 1 | . . 1 . Traps | -11 -10 -10 -8 ------- Run | Yrd Mat Sub Rec Traps Triggered 5 | . 5 . . Indirectly . | . . . . Trap Hack Attempts . | . . . . Triggered . | . . . . Disarmed . | . . . . Reprogrammed 6 | . 6 . . Reused 1 | . 1 . . Traps Extracted . | . . . . Installed . | . . . . Triggered 1 | . 1 . . Machines | -11 -10 -10 -8 ---------- Run | Yrd Mat Sub Rec Machines Disabled 2 | . 1 1 . Max in Single Turn 1 | . 1 1 . Machines Repaired . | . . . . Machines Dismantled . | . . . . Machines Sabotaged . | . . . . Overloaded Fab Kills . | . . . . Hacking | -11 -10 -10 -8 --------- Run | Yrd Mat Sub Rec Machines Accessed 11 | . 9 2 . Terminals 8 | . 8 . . Fabricators . | . . . . Repair Stations 1 | . 1 . . Recycling Units . | . . . . Scanalyzers . | . . . . Garrison Access . | . . . . Total Hacks 40 | . 27 13 . Successful 30 | . 17 13 . Failed 10 | . 10 . . Catastrophic . | . . . . Database Lockouts . | . . . . Manual 10 | . 10 . . Terminals 22 | . 22 . . Fabricators . | . . . . Repair Stations 5 | . 5 . . Recycling Units . | . . . . Scanalyzers . | . . . . Garrison Access . | . . . . Terminal Hacks 24 | . 11 13 . Record 12 | . . 12 . Part Schematic 2 | . 2 . . Prototype ID Bank 1 | . 1 . . Emergency Access Points 1 | . 1 . . Alert Level 1 | . 1 . . Locate Traps 2 | . 2 . . Reprogram Traps 1 | . 1 . . Registered Components 1 | . 1 . . Zone Layout 2 | . 2 . . Derelict Proto ID Bank 1 | . . 1 . Fabricator Hacks . | . . . . Repair Station Hacks 4 | . 4 . . Scan Component 2 | . 2 . . Repair 2 | . 2 . . Recycling Unit Hacks . | . . . . Scanalyzer . | . . . . Garrison Access Hacks . | . . . . Unauthorized Hacks 2 | . 2 . . Terminals 2 | . 2 . . Botnet 2 | . 2 . . Fabricators . | . . . . Repair Stations . | . . . . Recycling Units . | . . . . Scanalyzers . | . . . . Garrison Access . | . . . . Data Cores Recovered 1 | . 1 . . Used . | . . . . Hacking Detections 9 | . 9 . . Full Trace Events . | . . . . Feedback Events . | . . . . Feedback Blocked . | . . . . Robot Schematics Acquired . | . . . . Robots Built . | . . . . Authchips . | . . . . Time . | . . . . Total Robot Build Rating . | . . . . Part Schematics Acquired 2 | . 2 . . Parts Built . | . . . . Authchips . | . . . . Time . | . . . . Total Part Build Rating . | . . . . Parts Repaired 2 | . 2 . . Time 64 | . 64 . . Parts Recycled . | . . . . Recycled Matter . | . . . . Retrieved Matter . | . . . . Retrieved Components . | . . . . Parts Scanalyzed . | . . . . Part Schematics Acquired . | . . . . Parts Damaged . | . . . . Bothacking | -11 -10 -10 -8 ------------ Run | Yrd Mat Sub Rec Used RIF Installer . | . . . . Robots Hacked . | . . . . Non-combat . | . . . . Combat . | . . . . Robot Hacks Applied . | . . . . Relay Couplers Released . | . . . . Fabnet Peak Effective % . | . . . . Robots Rewired . | . . . . Allies Hacked . | . . . . Hacks Repelled . | . . . . Allies | -11 -10 -10 -8 -------- Run | Yrd Mat Sub Rec Total Allies . | . . . . Largest Group . | . . . . Highest-Rated Group . | . . . . Highest-Rated Ally . | . . . . Total Orders . | . . . . Ally Attacks . | . . . . Total Damage . | . . . . Kills . | . . . . Allies Corrupted . | . . . . Allies Melted . | . . . . Intel | -11 -10 -10 -8 ------- Run | Yrd Mat Sub Rec Robot Analysis Total . | . . . . Derelict Logs Recovered 2 | . . 2 . Drone Launches . | . . . . Drone Recoveries . | . . . . Exploration | -11 -10 -10 -8 ------------- Run | Yrd Mat Sub Rec Turns Passed 4067 | 93 1623 2345 6 Spaces Moved 2049 | 64 715 1266 4 Core 7 | 7 . . . Treads 291 | . . 287 4 Legs 1751 | 57 715 979 . Wheels . | . . . . Hover . | . . . . Flight . | . . . . Fastest Speed 50 | 50 120 120 160 Average Speed 175 | 112 186 172 160 Slowest Speed 190 | 120 190 190 160 Overloaded Moves . | . . . . Propulsion Burnouts . | . . . . Robots Hopped . | . . . . Cave-ins Triggered . | . . . . Exploration Rate (%) 42 | 4 91 68 5 Regions Visited 3 Branch Regions 2 Pre-discovered Areas 3 | . . 3 . Known Exits Taken . | . . . . Unknown Exits Taken 3 | 1 1 1 . Scrap Searched 10 | . . 10 . Spaces Dug . | . . . . Terrain Destroyed 61 | . 2 59 . Melee . | . . . . Projectile 2 | . . 2 . AOE 59 | . 2 57 . Terrain Rammed . | . . . . Walls Destroyed . | . . . . Machines Disabled . | . . . . Actions | -11 -10 -10 -8 --------- Run | Yrd Mat Sub Rec Total 2400 | 82 943 1371 4 Wait 203 | 7 161 35 . Move 2046 | 63 714 1265 4 Hop . | . . . . Pick Up 17 | 6 7 4 . Fast Attach 17 | 6 8 3 . Attach 3 | . 1 2 . Detach 4 | . 2 2 . Swap 12 | . 3 9 . Drop 18 | . 11 7 . Fire 79 | . 36 43 . Melee 1 | . . 1 . Ram . | . . . . Kick . | . . . . Crush . | . . . . Escape Stasis . | . . . . Rewire . | . . . . Trap . | . . . . Miscellaneous . | . . . . Route ------- -11/Scrapyard -10/Materials (discovered 6 exits: [*Mat x3] / [*Min x2] / *Sub) -10/Subcaves (discovered 3 exits: [*Mat x2] / [*Rec]) -8/Recycling History --------- Turn | Location | Event 9 | -11/Scrapyard | Discovered new exit (range 14) 94 | -11/Scrapyard | Entered Materials 174 | -10/Materials | Discovered new exit (range 11) 307 | -10/Materials | Build established: Mutant 403 | -10/Materials | Discovered new exit (range 16) 562 | -10/Materials | Discovered new exit (range 16) 1078 | -10/Materials | Discovered new exit (range 10) 1403 | -10/Materials | Discovered new exit (range 16) 1599 | -10/Materials | Repaired Lgt. Nuclear Core 1626 | -10/Materials | Repaired Aluminum Leg 1707 | -10/Materials | Discovered new exit (range 4) 1717 | -10/Materials | Entered Subcaves 2125 | -10/Subcaves | Core integrity fell below 50% 2472 | -10/Subcaves | Learned location of Zion (-7) 2472 | -10/Subcaves | Met a Zionite searching for "candidates" 2902 | -10/Subcaves | Curiously followed by a Cobbler waking with a query about "LVR3C" 3070 | -10/Subcaves | Core integrity fell below 20% 3436 | -10/Subcaves | Learned Materials trap positions 3526 | -10/Subcaves | Visited 4L-MR0's lab 3551 | -10/Subcaves | Found Powered Cannon 3552 | -10/Subcaves | Attached Powered Cannon, gained temporary slot: Power 3614 | -10/Subcaves | Discovered new exit (range 13) 3646 | -10/Subcaves | Visited Clippyterm 3651 | -10/Subcaves | Learned location of Section 7 (-3) 3724 | -10/Subcaves | Shifting Twisted Machinery released Sub. Machine Gun 3728 | -10/Subcaves | A swath of the cavern ceiling suddenly collapsed 3729 | -10/Subcaves | Shifting Twisted Machinery released Sub. Monowheel 4007 | -10/Subcaves | Discovered new exit (range 16) 4018 | -10/Subcaves | Discovered new exit (range 9) 4062 | -10/Subcaves | Entered Recycling 4068 | -8/Recycling | Destroyed by Y-45 Defender with Beam Rifle Last Messages --------------- 04009_ Lgt. Nuclear Core destroyed. 04016_ Autobeam Turret destroyed. 04018_ EXIT=FOUND 04019_ Acquired 64 matter. 04021_ Autobeam fries itself beyond repair. 04021_ Acquired 14 matter. 04023_ Acquired 9 matter. 04023_ WY-2LW(O) collects matter. 04026_ WY-2LW(O) puts together Battle Cannon. 04029_ WY-2LW(O) collects matter. 04034_ WPGHPX&2N HS9LO3/QGBP4YAAR0T5TI